[Event "Titled Tuesday Blitz May 30 Late 2023"]
[White "Do Nascimento,Christian Almeida"]
[Black "Shapiro, Daniel"]
[WhiteFideId "2143801"]
[BlackFideId "2001780"]
[WhiteElo "2118"]
[BlackElo "2358"]
[Result "0-1"]
[Round "09"]
[TimeControl "180+2"]
[Date "2023.05.31"]
[WhiteClock "0:00:08"]
[BlackClock "0:00:38"]

1. e4 {[%clk 0:02:57]}  c5 {[%clk 0:02:57]} 2. Nf3 {[%clk 0:02:52]}  e6 {[%clk 0:02:57]} 3. c4 {[%clk 0:02:51]}  a6 {[%clk 0:02:54]} 4. Nc3 {[%clk 0:02:50]}  Qc7 {[%clk 0:02:51]} 5. d4 {[%clk 0:02:50]}  cxd4 {[%clk 0:02:50]} 6. Nxd4 {[%clk 0:02:50]}  Nf6 {[%clk 0:02:49]} 7. Bd3 {[%clk 0:02:50]}  Bd6 {[%clk 0:02:40]} 8. h3 {[%clk 0:02:42]}  Nc6 {[%clk 0:02:39]} 9. Nxc6 {[%clk 0:02:28]}  dxc6 {[%clk 0:02:39]} 10. O-O {[%clk 0:02:28]}  O-O {[%clk 0:02:28]} 11. f4 {[%clk 0:02:26]}  e5 {[%clk 0:02:27]} 12. Qf3 {[%clk 0:02:20]}  b5 {[%clk 0:02:23]} 13. cxb5 {[%clk 0:02:17]}  axb5 {[%clk 0:02:23]} 14. fxe5 {[%clk 0:02:04]}  Bxe5 {[%clk 0:02:22]} 15. Bf4 {[%clk 0:01:57]}  Bxf4 {[%clk 0:02:17]} 16. Qxf4 {[%clk 0:01:57]}  Qxf4 {[%clk 0:02:16]} 17. Rxf4 {[%clk 0:01:57]}  Nd7 {[%clk 0:02:15]} 18. Bc2 {[%clk 0:01:35]}  Ne5 {[%clk 0:02:10]} 19. Ne2 {[%clk 0:01:14]}  Rd8 {[%clk 0:01:59]} 20. Bb3 {[%clk 0:00:53]}  Be6 {[%clk 0:01:58]} 21. Bxe6 {[%clk 0:00:51]}  fxe6 {[%clk 0:01:59]} 22. a3 {[%clk 0:00:47]}  Rd2 {[%clk 0:01:56]} 23. Ng3 {[%clk 0:00:31]}  Rxb2 {[%clk 0:01:50]} 24. Rd1 {[%clk 0:00:29]}  Rb3 {[%clk 0:01:35]} 25. Nh5 {[%clk 0:00:27]}  Rbxa3 {[%clk 0:01:30]} 26. Rd6 {[%clk 0:00:25]}  Re8 {[%clk 0:01:22]} 27. Rf2 {[%clk 0:00:11]}  b4 {[%clk 0:01:19]} 28. Nf4 {[%clk 0:00:11]}  b3 {[%clk 0:00:46]} 29. Rxe6 {[%clk 0:00:10]}  Rxe6 {[%clk 0:00:46]} 30. Nxe6 {[%clk 0:00:10]}  Ra8 {[%clk 0:00:45]} 31. Nd4 {[%clk 0:00:10]}  Nd3 {[%clk 0:00:38]} 32. Rd2 {[%clk 0:00:08]}  b2 {[%clk 0:00:38]} 0-1


[Site "https://www.chess.com"]

[Event "Titled Tuesday Blitz May 30 Late 2023"]
[White "Uzcategui Rodriguez, Alejandro"]
[Black "micke12a"]
[WhiteFideId "3903400"]
[WhiteElo "2252"]
[BlackElo "2404"]
[Result "1-0"]
[Round "09"]
[TimeControl "180+2"]
[Date "2023.05.31"]
[WhiteClock "0:00:08"]
[BlackClock "0:00:06"]

1. d4 {[%clk 0:03:00]}  Nf6 {[%clk 0:02:56]} 2. Nf3 {[%clk 0:03:00]}  d5 {[%clk 0:02:55]} 3. c3 {[%clk 0:03:00]}  c6 {[%clk 0:02:46]} 4. Bg5 {[%clk 0:02:56]}  Bf5 {[%clk 0:02:45]} 5. Qb3 {[%clk 0:02:55]}  Qb6 {[%clk 0:02:44]} 6. Nbd2 {[%clk 0:02:53]}  e6 {[%clk 0:02:43]} 7. e3 {[%clk 0:02:52]}  Be7 {[%clk 0:02:42]} 8. Be2 {[%clk 0:02:48]}  O-O {[%clk 0:02:39]} 9. Ne5 {[%clk 0:02:47]}  h6 {[%clk 0:02:38]} 10. Bh4 {[%clk 0:02:47]}  c5 {[%clk 0:02:34]} 11. O-O {[%clk 0:02:42]}  c4 {[%clk 0:02:33]} 12. Qxb6 {[%clk 0:02:41]}  axb6 {[%clk 0:02:34]} 13. a3 {[%clk 0:02:41]}  g5 {[%clk 0:02:32]} 14. Bg3 {[%clk 0:02:41]}  b5 {[%clk 0:02:25]} 15. h3 {[%clk 0:02:36]}  Nbd7 {[%clk 0:02:20]} 16. Bf3 {[%clk 0:02:35]}  Nb6 {[%clk 0:02:17]} 17. Rfe1 {[%clk 0:02:12]}  Na4 {[%clk 0:02:06]} 18. Ra2 {[%clk 0:02:12]}  Bc2 {[%clk 0:02:01]} 19. e4 {[%clk 0:02:10]}  dxe4 {[%clk 0:01:55]} 20. Nxe4 {[%clk 0:02:10]}  Bb3 {[%clk 0:01:53]} 21. Nxf6+ {[%clk 0:02:06]}  Bxf6 {[%clk 0:01:52]} 22. Nd7 {[%clk 0:02:06]}  Bxa2 {[%clk 0:01:49]} 23. Nxf6+ {[%clk 0:02:06]}  Kg7 {[%clk 0:01:49]} 24. Be5 {[%clk 0:02:06]}  Rfd8 {[%clk 0:01:40]} 25. Re2 {[%clk 0:01:50]}  Bb1 {[%clk 0:01:30]} 26. Bxb7 {[%clk 0:01:47]}  Ra7 {[%clk 0:01:29]} 27. Bc6 {[%clk 0:01:40]}  Bd3 {[%clk 0:01:26]} 28. Rd2 {[%clk 0:01:40]}  Kg6 {[%clk 0:00:51]} 29. Bxb5 {[%clk 0:01:34]}  Rda8 {[%clk 0:00:29]} 30. Bc6 {[%clk 0:00:53]}  Rc8 {[%clk 0:00:29]} 31. Bf3 {[%clk 0:00:52]}  Ra5 {[%clk 0:00:23]} 32. Bb7 {[%clk 0:00:31]}  Rf8 {[%clk 0:00:11]} 33. Bc6 {[%clk 0:00:16]}  Rc8 {[%clk 0:00:07]} 34. Bf3 {[%clk 0:00:13]}  Rb5 {[%clk 0:00:04]} 35. Bh5+ {[%clk 0:00:13]}  Kg7 {[%clk 0:00:05]} 36. Ne8+ {[%clk 0:00:11]}  Kg8 {[%clk 0:00:05]} 37. Nd6 {[%clk 0:00:12]}  Rxb2 {[%clk 0:00:05]} 38. Rxb2 {[%clk 0:00:12]}  Nxb2 {[%clk 0:00:06]} 39. Nxc8 {[%clk 0:00:12]}  Na4 {[%clk 0:00:07]} 40. d5 {[%clk 0:00:12]}  exd5 {[%clk 0:00:07]} 41. Nd6 {[%clk 0:00:12]}  f5 {[%clk 0:00:06]} 42. Bg6 {[%clk 0:00:11]}  d4 {[%clk 0:00:03]} 43. Bxd4 {[%clk 0:00:10]}  Kf8 {[%clk 0:00:04]} 44. Bxf5 {[%clk 0:00:10]}  Be2 {[%clk 0:00:05]} 45. Bg4 {[%clk 0:00:09]}  Ke7 {[%clk 0:00:06]} 46. Bxe2 {[%clk 0:00:09]}  Kxd6 {[%clk 0:00:06]} 47. Bxc4 {[%clk 0:00:09]}  Nb2 {[%clk 0:00:06]} 48. Be2 {[%clk 0:00:09]}  Na4 {[%clk 0:00:05]} 49. Kf1 {[%clk 0:00:09]}  Kd5 {[%clk 0:00:06]} 50. Ke1 {[%clk 0:00:09]}  Ke4 {[%clk 0:00:07]} 51. Kd2 {[%clk 0:00:09]}  Nb2 {[%clk 0:00:07]} 52. Bf3+ {[%clk 0:00:08]}  Kf4 {[%clk 0:00:08]} 53. Bd5 {[%clk 0:00:08]}  Na4 {[%clk 0:00:07]} 54. c4 {[%clk 0:00:07]}  g4 {[%clk 0:00:04]} 55. hxg4 {[%clk 0:00:07]}  Kxg4 {[%clk 0:00:05]} 56. Bc6 {[%clk 0:00:07]}  h5 {[%clk 0:00:06]} 57. Bxa4 {[%clk 0:00:06]}  h4 {[%clk 0:00:06]} 58. Bd7+ {[%clk 0:00:06]}  Kf4 {[%clk 0:00:07]} 59. Bh3 {[%clk 0:00:07]}  Ke4 {[%clk 0:00:06]} 60. Be3 {[%clk 0:00:08]} 1-0


[Site "https://www.chess.com"]

[Event "Titled Tuesday Blitz May 30 Late 2023"]
[White "Womacka, Mathias"]
[Black "Dragomirescu, Calin"]
[WhiteFideId "4611390"]
[BlackFideId "1200895"]
[WhiteElo "2377"]
[BlackElo "2010"]
[Result "0-1"]
[Round "09"]
[TimeControl "180+2"]
[Date "2023.05.31"]
[WhiteClock "0:00:18"]
[BlackClock "0:00:30"]

1. e4 {[%clk 0:03:00]}  g6 {[%clk 0:02:59]} 2. d4 {[%clk 0:02:59]}  Bg7 {[%clk 0:02:59]} 3. Nc3 {[%clk 0:03:00]}  d6 {[%clk 0:02:59]} 4. f4 {[%clk 0:03:00]}  Nf6 {[%clk 0:02:59]} 5. Nf3 {[%clk 0:03:00]}  O-O {[%clk 0:02:59]} 6. Bd3 {[%clk 0:03:00]}  Na6 {[%clk 0:02:59]} 7. O-O {[%clk 0:02:58]}  c5 {[%clk 0:02:59]} 8. d5 {[%clk 0:02:58]}  Rb8 {[%clk 0:02:59]} 9. f5 {[%clk 0:02:56]}  Qa5 {[%clk 0:02:58]} 10. fxg6 {[%clk 0:02:35]}  hxg6 {[%clk 0:02:57]} 11. Qe1 {[%clk 0:02:32]}  Nb4 {[%clk 0:02:50]} 12. Qh4 {[%clk 0:02:25]}  Nxd3 {[%clk 0:02:49]} 13. cxd3 {[%clk 0:02:24]}  c4 {[%clk 0:02:38]} 14. dxc4 {[%clk 0:01:54]}  Qc5+ {[%clk 0:02:34]} 15. Kh1 {[%clk 0:01:54]}  Qxc4 {[%clk 0:02:33]} 16. Bh6 {[%clk 0:01:53]}  Bg4 {[%clk 0:02:18]} 17. Ng5 {[%clk 0:01:45]}  Bh5 {[%clk 0:02:08]} 18. h3 {[%clk 0:01:45]}  Bxh6 {[%clk 0:02:04]} 19. g4 {[%clk 0:01:38]}  Bxg5 {[%clk 0:01:57]} 20. Qxg5 {[%clk 0:01:37]}  Nxe4 {[%clk 0:01:46]} 21. Qf4 {[%clk 0:01:20]}  Qd3 {[%clk 0:01:35]} 22. Rf3 {[%clk 0:00:57]}  g5 {[%clk 0:01:10]} 23. Qxe4 {[%clk 0:00:33]}  Qxe4 {[%clk 0:01:07]} 24. Nxe4 {[%clk 0:00:34]}  Bg6 {[%clk 0:01:06]} 25. Nxg5 {[%clk 0:00:34]}  f6 {[%clk 0:01:03]} 26. Ne6 {[%clk 0:00:33]}  Be4 {[%clk 0:01:01]} 27. Kg2 {[%clk 0:00:27]}  Rfc8 {[%clk 0:00:56]} 28. Kg3 {[%clk 0:00:26]}  Bxf3 {[%clk 0:00:55]} 29. Kxf3 {[%clk 0:00:27]}  Rc2 {[%clk 0:00:50]} 30. Rb1 {[%clk 0:00:23]}  Rbc8 {[%clk 0:00:49]} 31. h4 {[%clk 0:00:22]}  Rc1 {[%clk 0:00:48]} 32. Rxc1 {[%clk 0:00:21]}  Rxc1 {[%clk 0:00:49]} 33. g5 {[%clk 0:00:20]}  fxg5 {[%clk 0:00:47]} 34. hxg5 {[%clk 0:00:21]}  Rc2 {[%clk 0:00:46]} 35. Ke4 {[%clk 0:00:20]}  Rxb2 {[%clk 0:00:46]} 36. Kf5 {[%clk 0:00:20]}  Rxa2 {[%clk 0:00:43]} 37. Kg6 {[%clk 0:00:20]}  a5 {[%clk 0:00:42]} 38. Nd8 {[%clk 0:00:17]}  a4 {[%clk 0:00:38]} 39. Nf7 {[%clk 0:00:17]}  a3 {[%clk 0:00:38]} 40. Nh6+ {[%clk 0:00:17]}  Kf8 {[%clk 0:00:38]} 41. Kh7 {[%clk 0:00:18]}  Rg2 {[%clk 0:00:34]} 42. g6 {[%clk 0:00:19]}  a2 {[%clk 0:00:33]} 43. Nf5 {[%clk 0:00:18]}  a1=Q {[%clk 0:00:30]} 0-1


[Site "https://www.chess.com"]

[Event "Titled Tuesday Blitz May 30 Late 2023"]
[White "i_like_explosions"]
[Black "Bashkansky, Ethan"]
[BlackFideId "2071533"]
[WhiteElo "2435"]
[BlackElo "2327"]
[Result "1-0"]
[Round "09"]
[TimeControl "180+2"]
[Date "2023.05.31"]
[WhiteClock "0:00:47"]
[BlackClock "0:00:01"]

1. d4 {[%clk 0:03:00]}  f5 {[%clk 0:02:59]} 2. g3 {[%clk 0:03:00]}  Nf6 {[%clk 0:03:00]} 3. Bg2 {[%clk 0:03:01]}  g6 {[%clk 0:03:01]} 4. c4 {[%clk 0:03:01]}  Bg7 {[%clk 0:03:01]} 5. Nc3 {[%clk 0:03:02]}  O-O {[%clk 0:03:02]} 6. Nf3 {[%clk 0:03:02]}  d6 {[%clk 0:03:02]} 7. O-O {[%clk 0:03:02]}  Nc6 {[%clk 0:03:03]} 8. b3 {[%clk 0:02:59]}  a6 {[%clk 0:02:51]} 9. Qc2 {[%clk 0:02:55]}  Qe8 {[%clk 0:02:39]} 10. Ba3 {[%clk 0:02:52]}  e5 {[%clk 0:02:34]} 11. dxe5 {[%clk 0:02:52]}  Nxe5 {[%clk 0:02:35]} 12. Nxe5 {[%clk 0:02:51]}  Qxe5 {[%clk 0:02:35]} 13. Bb2 {[%clk 0:02:51]}  Ng4 {[%clk 0:02:13]} 14. h3 {[%clk 0:02:38]}  Nh6 {[%clk 0:02:13]} 15. Rab1 {[%clk 0:02:33]}  Qe8 {[%clk 0:01:55]} 16. Nd5 {[%clk 0:02:28]}  Qf7 {[%clk 0:01:39]} 17. Bxg7 {[%clk 0:02:17]}  Qxg7 {[%clk 0:01:34]} 18. c5 {[%clk 0:02:17]}  dxc5 {[%clk 0:01:24]} 19. Qxc5 {[%clk 0:02:18]}  c6 {[%clk 0:01:22]} 20. Nb6 {[%clk 0:02:18]}  Rb8 {[%clk 0:01:21]} 21. Qd6 {[%clk 0:02:18]}  f4 {[%clk 0:00:55]} 22. Qxb8 {[%clk 0:01:59]}  Bxh3 {[%clk 0:00:45]} 23. Qd6 {[%clk 0:01:58]}  Rf6 {[%clk 0:00:36]} 24. Qd8+ {[%clk 0:01:47]}  Rf8 {[%clk 0:00:36]} 25. Qd3 {[%clk 0:01:34]}  Bf5 {[%clk 0:00:34]} 26. Be4 {[%clk 0:01:33]}  Ng4 {[%clk 0:00:20]} 27. Bxf5 {[%clk 0:01:30]}  gxf5 {[%clk 0:00:19]} 28. Nc4 {[%clk 0:01:19]}  Qh6 {[%clk 0:00:17]} 29. Kg2 {[%clk 0:01:07]}  f3+ {[%clk 0:00:02]} 30. Kxf3 {[%clk 0:01:04]}  f4 {[%clk 0:00:03]} 31. Kxg4 {[%clk 0:00:53]}  Rf7 {[%clk 0:00:01]} 32. Qd8+ {[%clk 0:00:47]} 1-0


[Site "https://www.chess.com"]

[Event "Titled Tuesday Blitz May 30 Late 2023"]
[White "Florianovitz, Derlei Alex"]
[Black "Gatterer, Florian"]
[WhiteFideId "2114178"]
[BlackFideId "811688"]
[WhiteElo "1953"]
[BlackElo "2221"]
[Result "0-1"]
[Round "09"]
[TimeControl "180+2"]
[Date "2023.05.31"]
[WhiteClock "0:00:02"]
[BlackClock "0:00:13"]

1. e4 {[%clk 0:03:00]}  e5 {[%clk 0:03:00]} 2. Nf3 {[%clk 0:02:59]}  Nc6 {[%clk 0:03:00]} 3. Bb5 {[%clk 0:02:57]}  Nf6 {[%clk 0:02:59]} 4. O-O {[%clk 0:02:55]}  Nxe4 {[%clk 0:02:59]} 5. d4 {[%clk 0:02:55]}  Nd6 {[%clk 0:02:58]} 6. Bxc6 {[%clk 0:02:42]}  dxc6 {[%clk 0:02:59]} 7. dxe5 {[%clk 0:02:42]}  Nf5 {[%clk 0:02:59]} 8. Qxd8+ {[%clk 0:02:43]}  Kxd8 {[%clk 0:03:00]} 9. Bg5+ {[%clk 0:02:37]}  Ke8 {[%clk 0:02:55]} 10. Nbd2 {[%clk 0:02:34]}  Be7 {[%clk 0:02:53]} 11. Bxe7 {[%clk 0:02:31]}  Nxe7 {[%clk 0:02:50]} 12. c4 {[%clk 0:02:29]}  c5 {[%clk 0:02:46]} 13. Rfe1 {[%clk 0:02:16]}  h6 {[%clk 0:02:41]} 14. a4 {[%clk 0:02:11]}  a5 {[%clk 0:02:39]} 15. Ne4 {[%clk 0:02:04]}  b6 {[%clk 0:02:37]} 16. Nc3 {[%clk 0:02:01]}  Be6 {[%clk 0:02:31]} 17. b3 {[%clk 0:01:59]}  Kd7 {[%clk 0:02:14]} 18. Rad1+ {[%clk 0:01:55]}  Kc6 {[%clk 0:02:14]} 19. Rd2 {[%clk 0:01:47]}  Rhd8 {[%clk 0:02:03]} 20. Red1 {[%clk 0:01:48]}  Rxd2 {[%clk 0:01:46]} 21. Rxd2 {[%clk 0:01:49]}  Kb7 {[%clk 0:01:41]} 22. Nb5 {[%clk 0:01:44]}  Nc6 {[%clk 0:01:32]} 23. h3 {[%clk 0:01:35]}  Rd8 {[%clk 0:01:28]} 24. Rxd8 {[%clk 0:01:19]}  Nxd8 {[%clk 0:01:29]} 25. Nd2 {[%clk 0:01:11]}  g5 {[%clk 0:01:24]} 26. h4 {[%clk 0:01:06]}  Nc6 {[%clk 0:01:23]} 27. hxg5 {[%clk 0:00:53]}  hxg5 {[%clk 0:01:24]} 28. Ne4 {[%clk 0:00:52]}  g4 {[%clk 0:01:14]} 29. Nf6 {[%clk 0:00:31]}  Nxe5 {[%clk 0:01:00]} 30. Ne8 {[%clk 0:00:31]}  c6 {[%clk 0:00:49]} 31. Nbd6+ {[%clk 0:00:28]}  Kb8 {[%clk 0:00:46]} 32. Ng7 {[%clk 0:00:09]}  Kc7 {[%clk 0:00:37]} 33. Ne4 {[%clk 0:00:08]}  Nd3 {[%clk 0:00:31]} 34. Nd2 {[%clk 0:00:08]}  Kd6 {[%clk 0:00:25]} 35. f3 {[%clk 0:00:07]}  gxf3 {[%clk 0:00:24]} 36. gxf3 {[%clk 0:00:08]}  Bd7 {[%clk 0:00:24]} 37. Kf1 {[%clk 0:00:07]}  Ke5 {[%clk 0:00:24]} 38. Ke2 {[%clk 0:00:07]}  Nf4+ {[%clk 0:00:19]} 39. Ke3 {[%clk 0:00:07]}  Ng2+ {[%clk 0:00:19]} 40. Kf2 {[%clk 0:00:06]}  Nh4 {[%clk 0:00:19]} 41. Ke3 {[%clk 0:00:05]}  Kf6 {[%clk 0:00:16]} 42. Nh5+ {[%clk 0:00:05]}  Kg5 {[%clk 0:00:16]} 43. Ng3 {[%clk 0:00:03]}  f5 {[%clk 0:00:13]} 44. f4+ {[%clk 0:00:03]}  Kf6 {[%clk 0:00:13]} 45. Ne2 {[%clk 0:00:02]}  b5 {[%clk 0:00:13]} 0-1


[Site "https://www.chess.com"]

[Event "Titled Tuesday Blitz May 30 Late 2023"]
[White "Iskusnyh, Sergei"]
[Black "Rose, Felix"]
[WhiteFideId "4120027"]
[BlackFideId "5105722"]
[WhiteElo "2492"]
[BlackElo "2039"]
[Result "1-0"]
[Round "09"]
[TimeControl "180+2"]
[Date "2023.05.31"]
[WhiteClock "0:00:34"]
[BlackClock "0:00:04"]

1. e4 {[%clk 0:03:00]}  e5 {[%clk 0:02:59]} 2. Nf3 {[%clk 0:03:00]}  Nc6 {[%clk 0:02:59]} 3. Nc3 {[%clk 0:03:01]}  Nf6 {[%clk 0:02:59]} 4. Bb5 {[%clk 0:03:01]}  Bb4 {[%clk 0:02:59]} 5. O-O {[%clk 0:03:02]}  O-O {[%clk 0:03:00]} 6. d3 {[%clk 0:03:02]}  d6 {[%clk 0:03:00]} 7. Ne2 {[%clk 0:03:02]}  a6 {[%clk 0:02:58]} 8. Ba4 {[%clk 0:03:00]}  h6 {[%clk 0:02:54]} 9. c3 {[%clk 0:03:00]}  Ba5 {[%clk 0:02:51]} 10. Ng3 {[%clk 0:03:00]}  Ne7 {[%clk 0:02:47]} 11. d4 {[%clk 0:02:59]}  Ng6 {[%clk 0:02:46]} 12. h3 {[%clk 0:02:59]}  Bb6 {[%clk 0:02:45]} 13. Re1 {[%clk 0:02:58]}  Bd7 {[%clk 0:02:45]} 14. Bc2 {[%clk 0:02:57]}  Re8 {[%clk 0:02:43]} 15. Be3 {[%clk 0:02:56]}  Bc6 {[%clk 0:02:40]} 16. Qd2 {[%clk 0:02:49]}  exd4 {[%clk 0:02:38]} 17. Bxd4 {[%clk 0:02:48]}  Bxd4 {[%clk 0:02:27]} 18. Nxd4 {[%clk 0:02:26]}  Qd7 {[%clk 0:02:17]} 19. Ndf5 {[%clk 0:02:22]}  Re5 {[%clk 0:01:54]} 20. f3 {[%clk 0:01:19]}  Rd8 {[%clk 0:01:46]} 21. Rad1 {[%clk 0:01:16]}  d5 {[%clk 0:01:22]} 22. Nxh6+ {[%clk 0:01:10]}  gxh6 {[%clk 0:01:20]} 23. Qxh6 {[%clk 0:01:11]}  Qe7 {[%clk 0:01:10]} 24. f4 {[%clk 0:01:01]}  Nxf4 {[%clk 0:00:46]} 25. Qxf4 {[%clk 0:00:57]}  Re8 {[%clk 0:00:19]} 26. Nf5 {[%clk 0:00:53]}  Qf8 {[%clk 0:00:15]} 27. Qg5+ {[%clk 0:00:42]}  Kh7 {[%clk 0:00:08]} 28. Qxf6 {[%clk 0:00:42]}  R8e6 {[%clk 0:00:06]} 29. Qh4+ {[%clk 0:00:39]}  Kg8 {[%clk 0:00:04]} 30. Re3 {[%clk 0:00:34]} 1-0


[Site "https://www.chess.com"]

[Event "Titled Tuesday Blitz May 30 Late 2023"]
[White "Petrovic, Aleksa"]
[Black "Brown, Raehanna"]
[WhiteFideId "967629"]
[BlackFideId "7402740"]
[WhiteElo "2309"]
[BlackElo "1655"]
[Result "1-0"]
[Round "09"]
[TimeControl "180+2"]
[Date "2023.05.31"]
[WhiteClock "0:00:12"]
[BlackClock "0:00:03"]

1. e4 {[%clk 0:03:00]}  c5 {[%clk 0:02:58]} 2. Nf3 {[%clk 0:02:58]}  Nc6 {[%clk 0:02:58]} 3. Bb5 {[%clk 0:02:57]}  g6 {[%clk 0:02:56]} 4. Bxc6 {[%clk 0:02:57]}  bxc6 {[%clk 0:02:57]} 5. O-O {[%clk 0:02:57]}  Bg7 {[%clk 0:02:55]} 6. Re1 {[%clk 0:02:57]}  e5 {[%clk 0:02:54]} 7. b4 {[%clk 0:02:55]}  cxb4 {[%clk 0:02:49]} 8. c3 {[%clk 0:02:52]}  Ne7 {[%clk 0:02:45]} 9. cxb4 {[%clk 0:02:47]}  O-O {[%clk 0:02:43]} 10. Bb2 {[%clk 0:02:47]}  Qc7 {[%clk 0:02:41]} 11. Nc3 {[%clk 0:02:44]}  d6 {[%clk 0:02:24]} 12. d4 {[%clk 0:02:41]}  Bg4 {[%clk 0:02:20]} 13. Rc1 {[%clk 0:02:28]}  exd4 {[%clk 0:02:04]} 14. Nb5 {[%clk 0:02:06]}  Qb6 {[%clk 0:02:01]} 15. Nxd6 {[%clk 0:01:48]}  Rad8 {[%clk 0:01:56]} 16. Nc4 {[%clk 0:01:45]}  Qxb4 {[%clk 0:01:50]} 17. Ba3 {[%clk 0:01:33]}  Qb7 {[%clk 0:01:45]} 18. h3 {[%clk 0:01:16]}  Bxf3 {[%clk 0:01:37]} 19. Qxf3 {[%clk 0:01:17]}  Qd7 {[%clk 0:00:34]} 20. Bxe7 {[%clk 0:01:14]}  Qxe7 {[%clk 0:00:33]} 21. Na5 {[%clk 0:01:14]}  Rc8 {[%clk 0:00:28]} 22. Rxc6 {[%clk 0:01:09]}  Qb4 {[%clk 0:00:22]} 23. Rec1 {[%clk 0:01:04]}  Rxc6 {[%clk 0:00:20]} 24. Nxc6 {[%clk 0:01:05]}  Qb2 {[%clk 0:00:18]} 25. Ne7+ {[%clk 0:00:54]}  Kh8 {[%clk 0:00:18]} 26. Rd1 {[%clk 0:00:51]}  Be5 {[%clk 0:00:17]} 27. Nc6 {[%clk 0:00:48]}  Bg7 {[%clk 0:00:16]} 28. e5 {[%clk 0:00:47]}  Qxa2 {[%clk 0:00:15]} 29. Qe4 {[%clk 0:00:44]}  Qa6 {[%clk 0:00:14]} 30. Nxd4 {[%clk 0:00:34]}  Re8 {[%clk 0:00:13]} 31. f4 {[%clk 0:00:31]}  g5 {[%clk 0:00:14]} 32. Nf5 {[%clk 0:00:28]}  gxf4 {[%clk 0:00:12]} 33. Nd6 {[%clk 0:00:28]}  Qb6+ {[%clk 0:00:11]} 34. Kh1 {[%clk 0:00:27]}  Rxe5 {[%clk 0:00:11]} 35. Nxf7+ {[%clk 0:00:26]}  Kg8 {[%clk 0:00:10]} 36. Nxe5 {[%clk 0:00:26]}  Qe6 {[%clk 0:00:09]} 37. Rd8+ {[%clk 0:00:23]}  Bf8 {[%clk 0:00:10]} 38. Qxf4 {[%clk 0:00:20]}  Qe7 {[%clk 0:00:08]} 39. Qg4+ {[%clk 0:00:18]}  Kh8 {[%clk 0:00:08]} 40. Qc8 {[%clk 0:00:15]}  Qxe5 {[%clk 0:00:07]} 41. Rxf8+ {[%clk 0:00:15]}  Kg7 {[%clk 0:00:08]} 42. Rg8+ {[%clk 0:00:15]}  Kh6 {[%clk 0:00:07]} 43. Qc6+ {[%clk 0:00:15]}  Kh5 {[%clk 0:00:07]} 44. Qf3+ {[%clk 0:00:14]}  Kh6 {[%clk 0:00:07]} 45. Qg3 {[%clk 0:00:13]}  Qa1+ {[%clk 0:00:04]} 46. Kh2 {[%clk 0:00:13]}  Qf6 {[%clk 0:00:03]} 47. Rg4 {[%clk 0:00:12]} 1-0


[Site "https://www.chess.com"]

[Event "Titled Tuesday Blitz May 30 Late 2023"]
[White "Mickiewicz, Piotr"]
[Black "rionelG"]
[WhiteFideId "1114891"]
[WhiteElo "2246"]
[BlackElo "2191"]
[Result "1-0"]
[Round "09"]
[TimeControl "180+2"]
[Date "2023.05.31"]
[WhiteClock "0:00:16"]
[BlackClock "0:00:02"]

1. Nf3 {[%clk 0:02:49]}  Nf6 {[%clk 0:02:45]} 2. g3 {[%clk 0:02:43]}  g6 {[%clk 0:02:46]} 3. b3 {[%clk 0:02:42]}  Bg7 {[%clk 0:02:46]} 4. Bb2 {[%clk 0:02:43]}  O-O {[%clk 0:02:46]} 5. c4 {[%clk 0:02:43]}  d6 {[%clk 0:02:47]} 6. Bg2 {[%clk 0:02:36]}  e5 {[%clk 0:02:11]} 7. d3 {[%clk 0:02:28]}  Re8 {[%clk 0:02:06]} 8. O-O {[%clk 0:02:23]}  c6 {[%clk 0:02:01]} 9. Nbd2 {[%clk 0:02:15]}  Nbd7 {[%clk 0:02:00]} 10. Qc2 {[%clk 0:02:13]}  a5 {[%clk 0:01:58]} 11. a3 {[%clk 0:02:11]}  Nf8 {[%clk 0:01:54]} 12. b4 {[%clk 0:02:09]}  N6d7 {[%clk 0:01:41]} 13. e4 {[%clk 0:02:08]}  Ne6 {[%clk 0:01:37]} 14. Rfe1 {[%clk 0:01:57]}  b6 {[%clk 0:01:25]} 15. c5 {[%clk 0:01:36]}  bxc5 {[%clk 0:01:24]} 16. bxa5 {[%clk 0:01:35]}  Qxa5 {[%clk 0:01:20]} 17. Nc4 {[%clk 0:01:33]}  Qc7 {[%clk 0:01:20]} 18. Bc3 {[%clk 0:01:28]}  Nd4 {[%clk 0:01:20]} 19. Nxd4 {[%clk 0:01:25]}  cxd4 {[%clk 0:01:19]} 20. Bb4 {[%clk 0:01:23]}  c5 {[%clk 0:01:05]} 21. Bd2 {[%clk 0:01:22]}  Nb6 {[%clk 0:01:05]} 22. a4 {[%clk 0:01:11]}  Nxc4 {[%clk 0:01:03]} 23. dxc4 {[%clk 0:01:08]}  Bd7 {[%clk 0:01:01]} 24. a5 {[%clk 0:01:07]}  Reb8 {[%clk 0:00:55]} 25. Reb1 {[%clk 0:01:07]}  Bf6 {[%clk 0:00:54]} 26. Bf1 {[%clk 0:00:46]}  Bc6 {[%clk 0:00:52]} 27. Bd3 {[%clk 0:00:45]}  Bd8 {[%clk 0:00:51]} 28. Rxb8 {[%clk 0:00:44]}  Qxb8 {[%clk 0:00:49]} 29. Qd1 {[%clk 0:00:42]}  Bc7 {[%clk 0:00:42]} 30. h4 {[%clk 0:00:41]}  Qd8 {[%clk 0:00:18]} 31. h5 {[%clk 0:00:38]}  Bxa5 {[%clk 0:00:15]} 32. Bh6 {[%clk 0:00:28]}  Bc3 {[%clk 0:00:13]} 33. Rb1 {[%clk 0:00:29]}  Rb8 {[%clk 0:00:12]} 34. Qf3 {[%clk 0:00:29]}  Rxb1+ {[%clk 0:00:12]} 35. Bxb1 {[%clk 0:00:29]}  Qe7 {[%clk 0:00:08]} 36. Bd3 {[%clk 0:00:29]}  Bd7 {[%clk 0:00:08]} 37. Bc1 {[%clk 0:00:21]}  f6 {[%clk 0:00:05]} 38. h6 {[%clk 0:00:19]}  Kf7 {[%clk 0:00:04]} 39. Qd1 {[%clk 0:00:20]}  Qd8 {[%clk 0:00:03]} 40. f4 {[%clk 0:00:17]}  Qa5 {[%clk 0:00:02]} 41. f5 {[%clk 0:00:16]} 1-0


[Site "https://www.chess.com"]